bitfinex/quotes_SOLUSD_20220218
["timestamp","ask_amount","ask_price","bid_price","bid_amount"]
[1645165673225,105.4,94.827,94.766,2.65628592]
[1645165675727,105.4,94.825,94.766,2.65628592]
[1645165675926,105.4,94.819,94.766,2.65628592]
[1645165676127,105.4,94.819,94.765,24.6932]
[1645165676331,15.8303,94.82,94.765,24.6932]
[1645165681537,15.80054433,94.82,94.765,24.6932]
[1645165683139,105.4,94.819,94.765,24.6932]
[1645165702687,15.80054433,94.82,94.765,24.6932]
[1645165702889,24.4577,94.826,94.765,27.34948592]
[1645165703090,24.4577,94.826,94.766,5.274]
[1645165703590,39.31249027,94.828,94.767,2.65628592]
[1645165703791,39.31249027,94.828,94.768,5.274]
[1645165704190,39.31249027,94.828,94.77,15.27]
[1645165704590,39.31249027,94.828,94.771,2.65628592]
[1645165704790,39.31249027,94.828,94.771,7.93028592]
[1645165705196,39.31249027,94.828,94.772,2.65628592]
[1645165714202,23.497,94.827,94.772,2.65628592]
[1645165717721,23.497,94.827,94.771,2.65628592]
[1645165719541,47.88740527,94.826,94.771,2.65628592]
[1645165727644,153.28740527,94.826,94.771,2.65628592]
[1645165727844,23.1232,94.825,94.771,2.65628592]
[1645165728044,105.4,94.824,94.771,2.65628592]
[1645165729345,15.8302,94.82,94.771,2.65628592]
[1645165729746,105.4,94.819,94.771,2.65628592]
[1645165730346,15.8302,94.82,94.771,2.65628592]
[1645165731264,105.4,94.819,94.771,2.65628592]
[1645165732250,105.4,94.819,94.765,24.6932]
[1645165740362,15.8302,94.82,94.765,24.6932]
[1645165740564,23.1232,94.825,94.765,24.6932]
[1645165740762,23.1232,94.825,94.766,2.65628592]
[1645165744667,105.4,94.824,94.766,2.65628592]
[1645165746367,15.8303,94.82,94.766,2.65628592]
[1645165747165,23.1232,94.825,94.766,2.65628592]
[1645165747366,23.1232,94.825,94.767,5.274]
[1645165747867,23.1232,94.825,94.768,2.65628592]
[1645165760602,23.1232,94.825,94.765,24.6932]
[1645165761202,105.4,94.824,94.765,24.6932]
[1645165764405,23.1232,94.825,94.765,24.6932]
[1645165764605,23.1232,94.825,94.766,2.65628592]
[1645165764806,23.1232,94.825,94.767,5.274]
[1645165765207,23.1232,94.825,94.768,2.65628592]
[1645165765610,23.1232,94.825,94.769,5.274]
[1645165766011,23.1232,94.825,94.77,2.65628592]
[1645165771215,23.1232,94.825,94.771,5.274]
[1645165771617,23.1232,94.825,94.772,2.65628592]
[1645165771818,23.1232,94.825,94.773,5.274]
[1645165772215,23.1232,94.825,94.774,2.65628592]
[1645165772417,23.1232,94.825,94.775,5.274]
[1645165772616,23.1232,94.825,94.774,2.65628592]
[1645165772819,23.1232,94.825,94.776,2.65628592]
[1645165789653,23.1232,94.825,94.766,2.65628592]
[1645165798972,23.1232,94.825,94.77,15.8258]
[1645165799177,1.49417573,94.837,94.77,136.4958]
[1645165799375,5.274,94.85,94.772,105.4]
[1645165799376,22.9256,94.849,94.772,105.4]
[1645165799771,22.9256,94.849,94.774,105.4]
[1645165800175,22.9256,94.849,94.776,105.4]
[1645165800372,22.9256,94.849,94.79,31.0908]
[1645165800572,22.9256,94.849,94.791,68.33756667]
[1645165800772,22.9256,94.849,94.791,70.99385259]
[1645165801179,22.9256,94.849,94.792,2.65628592]
[1645165801373,22.9256,94.849,94.793,5.273]
[1645165801776,22.9256,94.849,94.794,2.65628592]
[1645165802174,22.9256,94.849,94.795,5.273]
[1645165802375,22.9256,94.849,94.8,15.8208]
[1645165802574,22.9256,94.849,94.801,5.242]
[1645165802774,22.9256,94.849,94.801,7.89828592]
[1645165802976,22.9256,94.849,94.802,22.6906]
[1645165803181,22.9256,94.849,94.803,5.272]
[1645165803374,22.9256,94.849,94.803,7.92828592]
[1645165803875,22.9256,94.849,94.804,2.65628592]
[1645165804777,44.44162365,94.859,94.804,2.65628592]
[1645165805573,24.4657,94.858,94.804,2.65628592]
[1645165807475,1.49417573,94.873,94.804,2.65628592]
[1645165807677,1.49417573,94.877,94.81,31.0891]
[1645165807878,23.2081,94.882,94.81,31.0891]
[1645165808176,23.2081,94.882,94.811,20.64633232]
[1645165808376,53.01564221,94.881,94.811,20.64633232]
[1645165808577,53.01564221,94.881,94.812,20.64633232]
[1645165809080,53.01564221,94.881,94.813,2.65628592]
[1645165809480,53.01564221,94.881,94.821,50.13259304]
[1645165809880,53.01564221,94.881,94.822,2.65628592]
[1645165816693,105.4,94.88,94.822,2.65628592]
[1645165816899,105.4,94.88,94.823,5.271]
[1645165817095,105.4,94.88,94.814,23.3949]
[1645165817696,105.4,94.88,94.815,42.49137292]
[1645165818293,121.2205,94.88,94.815,42.49137292]
[1645165818696,121.2205,94.88,94.814,23.3949]
[1645165828525,1.49417573,94.878,94.814,23.3949]
[1645165828724,1.49417573,94.877,94.814,23.3949]
[1645165829025,1.49417573,94.878,94.814,23.3949]
[1645165829324,1.49417573,94.875,94.814,23.3949]
[1645165831527,1.49417573,94.874,94.814,23.3949]
[1645165833028,1.49417573,94.873,94.814,23.3949]
[1645165833430,1.49417573,94.874,94.814,23.3949]
[1645165834929,1.49417573,94.873,94.814,23.3949]
[1645165838541,1.49417573,94.871,94.814,23.3949]
[1645165838738,1.49417573,94.873,94.814,23.3949]
[1645165839663,1.49417573,94.872,94.814,23.3949]
[1645165840563,1.49417573,94.873,94.814,23.3949]
[1645165841365,1.49417573,94.872,94.814,23.3949]
[1645165843065,1.49417573,94.871,94.814,23.3949]
[1645165845768,1.49417573,94.869,94.814,23.3949]
[1645165846673,1.49417573,94.867,94.814,23.3949]
[1645165846872,1.49417573,94.868,94.814,23.3949]
[1645165848275,1.49417573,94.867,94.814,23.3949]
[1645165849472,1.49417573,94.868,94.814,23.3949]
[1645165854483,1.49417573,94.865,94.814,23.3949]
[1645165854685,1.49417573,94.864,94.814,23.3949]
[1645165854884,1.49417573,94.863,94.814,23.3949]
[1645165855384,105.4,94.859,94.814,23.3949]
[1645165855685,15.824,94.86,94.814,23.3949]
[1645165859201,105.4,94.859,94.805,2.65628592]
[1645165859398,105.4,94.859,94.8,5.271]
[1645165859598,1.49417573,94.858,94.8,5.271]
[1645165859998,105.4,94.856,94.8,5.271]
[1645165860199,105.4,94.856,94.8,46.7653883]
[1645165861401,105.4,94.856,94.8,5.271]
[1645165862401,105.4,94.856,94.801,47.62180107]
[1645165865101,105.4,94.856,94.802,23.5021]
[1645165868024,15.8254,94.85,94.802,23.5021]
[1645165868428,53.72374678,94.849,94.802,23.5021]
[1645165868625,159.12374678,94.849,94.802,23.5021]
[1645165868824,53.72374678,94.849,94.802,23.5021]
[1645165870435,159.12374678,94.849,94.802,23.5021]
[1645165874539,159.12374678,94.849,94.8,5.271]
[1645165876741,165.04374678,94.849,94.8,5.271]
[1645165877346,105.4,94.839,94.8,5.271]
[1645165879047,59.64374678,94.849,94.8,5.271]
[1645165879048,105.4,94.829,94.8,5.271]
[1645165879249,111.29,94.829,94.8,5.271]
[1645165879455,111.29,94.829,94.761,24.4201]
[1645165879647,105.4,94.827,94.761,24.4201]
[1645165879847,105.4,94.827,94.762,48.87366278]
[1645165880449,105.4,94.817,94.762,48.87366278]
[1645165881252,128.5119,94.817,94.762,48.87366278]
[1645165885274,105.4,94.809,94.762,48.87366278]
[1645165890381,105.4,94.816,94.762,48.87366278]
[1645165900499,105.4,94.816,94.761,24.4201]
[1645165901502,105.4,94.816,94.762,50.18998621]
[1645165902901,23.1119,94.817,94.762,50.18998621]
[1645165903101,23.1119,94.817,94.763,2.65628592]
[1645165903500,46.71006547,94.818,94.763,2.65628592]
[1645165904203,23.6039,94.817,94.762,50.18998621]
[1645165907703,46.71006547,94.818,94.762,50.18998621]
[1645165907915,46.71006547,94.818,94.763,2.65628592]
[1645165909809,24.615,94.817,94.763,2.65628592]
[1645165914414,105.4,94.816,94.763,2.65628592]
[1645165915716,105.4,94.816,94.762,53.11349812]
[1645165917619,105.4,94.816,94.761,24.4201]
[1645165922242,105.4,94.809,94.761,24.4201]
[1645165922446,105.4,94.809,94.75,2.65628592]
[1645165923243,11.825,94.816,94.744,23.4681]
[1645165923244,105.4,94.799,94.744,23.4681]
[1645165923443,105.4,94.797,94.744,23.4681]
[1645165923644,111.29,94.797,94.744,23.4681]
[1645165924345,105.4,94.789,94.744,23.4681]
[1645165924552,105.4,94.787,94.744,23.4681]
[1645165924745,128.0561,94.787,94.744,23.4681]
[1645165925351,121.2372,94.78,94.744,23.4681]
[1645165926146,121.2372,94.78,94.727,22.7667]
[1645165926350,121.2372,94.78,94.728,23.4663]
[1645165926351,127.7772,94.78,94.728,23.4663]
[1645165926547,105.4,94.769,94.728,23.4663]
[1645165926949,105.4,94.769,94.706,2.65628592]
[1645165927152,105.4,94.767,94.707,23.4663]
[1645165927549,105.4,94.767,94.707,26.12258592]
[1645165928353,105.4,94.759,94.707,23.4663]
[1645165928749,105.4,94.757,94.707,23.4663]
[1645165928951,105.4,94.755,94.707,23.4663]
[1645165929350,105.4,94.753,94.707,23.4663]
[1645165929550,105.4,94.751,94.707,23.4663]
[1645165930150,105.4,94.749,94.707,23.4663]
[1645165931151,15.8444,94.74,94.707,23.4663]
[1645165933954,121.2444,94.74,94.707,23.4663]
[1645165934156,121.2444,94.74,94.688,2.65628592]
[1645165935159,121.2444,94.74,94.688,50.66601845]
[1645165935559,121.2444,94.74,94.689,26.71438592]
[1645165935758,121.2444,94.74,94.689,26.50354689]
[1645165935957,121.2644,94.74,94.689,26.50354689]
[1645165939563,105.4,94.738,94.689,26.50354689]
[1645165942470,105.4,94.738,94.689,24.0581]
[1645165944568,23.557,94.739,94.689,24.0581]
[1645165945170,23.557,94.739,94.689,26.71438592]
[1645165945772,105.4,94.738,94.689,26.71438592]
[1645165945973,105.42,94.738,94.689,26.71438592]
[1645165947575,105.42,94.738,94.689,24.0581]
[1645165948181,0.02,94.738,94.689,24.0581]
[1645165949274,105.42,94.738,94.689,24.0581]
[1645165951175,105.4,94.738,94.689,24.0581]
[1645165952806,23.577,94.739,94.689,24.0581]
[1645165954610,105.4,94.738,94.689,18.5581]
[1645165958317,23.577,94.739,94.689,18.5581]
[1645165959615,105.4,94.738,94.689,18.5581]
[1645165961015,105.4,94.736,94.689,18.5581]
[1645165961616,105.4,94.729,94.689,18.5581]
[1645165961816,110.679,94.729,94.689,18.5581]
[1645165964115,105.4,94.729,94.689,18.5581]
[1645165967620,105.42,94.729,94.689,18.5581]
[1645165968321,105.42,94.729,94.674,2.65628592]
[1645165968528,105.4,94.727,94.662,22.6521]
[1645165969122,105.4,94.725,94.662,22.6521]
[1645165970827,105.4,94.719,94.662,22.6521]
[1645165974432,110.68,94.719,94.662,22.6521]
[1645165974830,110.68,94.719,94.662,22.1521]
[1645165976832,110.7,94.719,94.662,22.1521]
[1645165977233,5.3,94.719,94.663,2.65628592]
[1645165977432,0.02,94.719,94.663,2.65628592]
[1645165983963,15.8684,94.72,94.663,2.65628592]
[1645165984163,105.4,94.719,94.663,2.65628592]
[1645165984563,105.4,94.719,94.662,22.1521]
[1645165984764,105.4,94.717,94.662,22.1521]
[1645165985165,105.4,94.715,94.662,22.1521]
[1645165985667,105.4,94.713,94.662,22.1521]
[1645165986066,147.34279317,94.711,94.662,22.1521]
[1645165986268,24.5792,94.71,94.662,22.1521]
[1645165986966,40.4288,94.71,94.662,22.1521]
[1645165987166,5.28,94.709,94.662,22.1521]
[1645165987366,105.4,94.708,94.662,22.1521]
[1645165987568,5.28,94.707,94.662,22.1521]
[1645165989169,105.4,94.708,94.662,22.1521]
[1645165989370,105.4,94.708,94.663,2.65628592]
[1645165992071,0.02,94.707,94.663,2.65628592]
[1645166002286,105.42,94.709,94.663,2.65628592]
[1645166003487,105.42,94.709,94.662,22.1521]
[1645166005208,105.4,94.707,94.662,22.1521]
[1645166005409,105.4,94.705,94.662,22.1521]
[1645166006010,105.4,94.703,94.662,22.1521]
[1645166010521,105.4,94.699,94.645,5.50938024]
[1645166010722,105.4,94.699,94.646,23.8713]
[1645166010923,105.4,94.697,94.632,13.16398272]
[1645166011124,105.4,94.695,94.633,23.8713]
[1645166011524,105.4,94.693,94.634,2.65628592]
[1645166011923,105.4,94.689,94.634,2.65628592]
[1645166012524,105.4,94.687,94.614,2.65628592]
[1645166012728,1.49417573,94.682,94.601,24.1542]
[1645166012925,15.8593,94.66,94.601,24.1542]
[1645166013128,129.2676,94.659,94.601,24.1542]
[1645166013325,105.4,94.657,94.601,24.1542]
[1645166013526,105.4,94.655,94.601,24.1542]
[1645166013927,105.4,94.653,94.601,24.1542]
[1645166014426,15.8596,94.65,94.601,24.1542]
[1645166014826,5.283,94.649,94.601,24.1542]
[1645166015027,105.4,94.648,94.581,24.6952]
[1645166015231,105.4,94.646,94.582,23.8258]
[1645166015829,5.284,94.648,94.583,53.06812412]
[1645166016030,5.284,94.657,94.583,58.35212412]
[1645166016229,43.79541797,94.658,94.583,61.00841004]
[1645166016432,43.79541797,94.658,94.583,58.35212412]
[1645166016629,43.79541797,94.658,94.584,2.65628592]
[1645166016830,5.284,94.657,94.584,2.65628592]
[1645166017032,15.8594,94.65,94.584,2.65628592]
[1645166017232,110.684,94.649,94.583,53.06812412]
[1645166017435,134.8373,94.649,94.583,53.06812412]
[1645166017833,0.02,94.646,94.583,53.06812412]
[1645166020035,0.02,94.646,94.584,5.284]
[1645166020237,0.02,94.646,94.584,7.94028592]
[1645166020440,0.02,94.646,94.585,19.23354209]
[1645166020638,0.02,94.646,94.586,5.284]
[1645166020836,0.02,94.646,94.586,24.51754209]
[1645166021036,0.02,94.646,94.587,19.23354209]
[1645166021337,0.02,94.646,94.6,15.27]
[1645166021535,0.02,94.646,94.602,49.23646709]
[1645166021738,0.02,94.646,94.603,5.284]
[1645166022141,0.02,94.646,94.605,105.4]
[1645166022340,0.02,94.646,94.611,105.4]
[1645166022542,0.02,94.646,94.62,15.8488]
[1645166022945,0.02,94.649,94.621,5.283]
[1645166023144,0.02,94.649,94.622,22.7812]
[1645166023540,0.02,94.649,94.622,25.43748592]
[1645166023742,0.02,94.649,94.623,2.65628592]
[1645166024043,0.02,94.649,94.624,5.283]
[1645166024442,0.02,94.649,94.63,15.848]
[1645166024842,0.02,94.649,94.631,2.65628592]
[1645166025044,0.02,94.649,94.631,7.93928592]
[1645166025446,0.02,94.649,94.632,2.65628592]
[1645166025643,47.58177132,94.709,94.632,2.65628592]
[1645166025644,47.58177132,94.709,94.633,5.283]
[1645166025846,47.58177132,94.709,94.64,15.8463]
[1645166026043,47.58177132,94.709,94.642,55.01542873]
[1645166026245,47.58177132,94.709,94.643,5.281]
[1645166026646,47.58177132,94.709,94.644,2.65628592]
[1645166026945,47.58177132,94.709,94.645,5.281]
[1645166027446,47.58177132,94.709,94.65,15.8459]
[1645166027844,47.58177132,94.709,94.651,2.65628592]
[1645166040081,47.58177132,94.709,94.651,108.05628592]
[1645166040282,1.49417573,94.744,94.661,146.86210941]
[1645166040482,5.28,94.752,94.671,105.4]
[1645166040684,1.49417573,94.767,94.671,4.86]
[1645166040885,5.277,94.764,94.672,28.543]
[1645166041181,46.85427574,94.765,94.672,31.19928592]
[1645166041382,46.85427574,94.765,94.681,46.94312093]
[1645166041383,5.277,94.764,94.681,46.94312093]
[1645166041582,5.277,94.764,94.681,52.22012093]
[1645166041784,5.277,94.764,94.682,2.65628592]
[1645166041982,46.85427574,94.765,94.683,5.277]
[1645166042185,105.4,94.764,94.684,23.3601]
[1645166042382,105.4,94.764,94.685,5.277]
[1645166042585,46.85427574,94.765,94.685,5.277]
[1645166042586,46.85427574,94.765,94.69,15.8388]
[1645166042784,46.85427574,94.765,94.691,5.277]
[1645166043286,46.85427574,94.765,94.692,2.65628592]
[1645166043484,46.85427574,94.765,94.693,5.277]
[1645166043884,46.85427574,94.765,94.694,2.65628592]
[1645166044083,46.85427574,94.765,94.695,23.1956]
[1645166044285,105.4,94.764,94.695,23.1956]
[1645166044484,110.677,94.764,94.696,48.74609182]
[1645166044782,5.277,94.764,94.696,46.0898059]
[1645166044986,5.277,94.764,94.697,2.65628592]
[1645166045384,105.4,94.763,94.697,2.65628592]
[1645166045985,15.8411,94.76,94.697,2.65628592]
[1645166046384,24.5006,94.759,94.697,2.65628592]
[1645166047787,105.4,94.758,94.697,2.65628592]
[1645166047987,105.4,94.758,94.698,5.277]
[1645166048390,105.4,94.758,94.699,2.65628592]
[1645166048588,105.4,94.749,94.695,23.1956]
[1645166048787,105.4,94.747,94.695,23.1956]
[1645166048989,105.4,94.747,94.683,24.7963]
[1645166049189,105.4,94.745,94.683,24.7963]
[1645166049393,105.4,94.743,94.683,24.7963]
[1645166050390,15.8445,94.74,94.683,24.7963]
[1645166050592,5.279,94.739,94.683,24.7963]
[1645166051792,105.4,94.738,94.683,24.7963]
[1645166056897,105.4,94.739,94.683,24.7963]
[1645166065505,15.8458,94.73,94.661,5.279]
[1645166065705,105.4,94.729,94.662,23.6991]
[1645166065905,133.4442,94.729,94.662,23.6991]
[1645166066505,105.4,94.727,94.662,23.6991]
[1645166066707,105.4,94.725,94.662,23.6991]
[1645166067106,105.4,94.723,94.662,23.6991]
[1645166067506,110.68,94.722,94.66,15.27]
[1645166067707,15.8476,94.72,94.66,15.27]
[1645166068407,15.8476,94.72,94.661,23.7172]
[1645166070109,105.4,94.719,94.66,15.27]
[1645166070310,105.4,94.709,94.66,15.27]
[1645166070511,105.4,94.709,94.646,23.9731]
[1645166070710,105.4,94.707,94.646,23.9731]
[1645166071315,105.4,94.705,94.646,23.9731]
[1645166080140,39.12713421,94.706,94.646,23.9731]
[1645166080541,39.12713421,94.706,94.646,26.62938592]
[1645166081547,39.12713421,94.706,94.647,5.281]
[1645166084046,39.12713421,94.706,94.646,23.9731]
[1645166084846,105.4,94.705,94.646,23.9731]
[1645166085049,39.12713421,94.706,94.646,23.9731]
[1645166090658,5.281,94.717,94.646,28.5331]
[1645166090858,11.45650748,94.811,94.648,105.4]
[1645166090859,1.49417573,94.721,94.648,105.4]
[1645166091058,1.49417573,94.73,94.66,15.27]
[1645166091261,1.49417573,94.732,94.661,24.6183]
[1645166091457,1.49417573,94.736,94.661,24.6183]
[1645166091658,24.76717573,94.739,94.662,5.279]
[1645166091860,52.9920324,94.738,94.662,53.40912409]
[1645166092159,52.9920324,94.738,94.663,2.65628592]
[1645166092362,52.9920324,94.738,94.67,15.8412]
[1645166092568,52.9920324,94.738,94.67,37.5412]
[1645166092865,52.9920324,94.738,94.671,2.65628592]
[1645166093066,52.9920324,94.738,94.672,24.744]
[1645166094664,52.9920324,94.738,94.673,2.65628592]
[1645166096265,52.9920324,94.738,94.672,24.744]
[1645166097668,52.9920324,94.738,94.673,5.279]
[1645166099276,52.9920324,94.738,94.674,2.65628592]
[1645166099678,52.9920324,94.738,94.673,5.279]
[1645166101781,52.9920324,94.738,94.674,2.65628592]
[1645166101981,52.9920324,94.738,94.675,5.279]
[1645166102385,52.9920324,94.738,94.677,43.34315501]
[1645166104083,52.9920324,94.738,94.676,2.65628592]
[1645166107997,105.4,94.737,94.676,2.65628592]
[1645166108397,52.9920324,94.738,94.676,2.65628592]
[1645166108598,105.4,94.737,94.676,2.65628592]
[1645166109301,15.8464,94.73,94.676,2.65628592]
[1645166109498,105.4,94.729,94.676,2.65628592]
[1645166109699,105.4,94.727,94.676,2.65628592]
[1645166116908,23.5584,94.728,94.676,2.65628592]
[1645166121718,23.5584,94.728,94.673,2.65628592]
[1645166124420,23.5584,94.728,94.673,18.16138592]
[1645166125622,23.5584,94.728,94.674,2.65628592]
[1645166133726,23.5584,94.728,94.674,18.29118592]
[1645166134028,23.5584,94.728,94.675,2.65628592]
[1645166138432,1.49417573,94.737,94.676,5.279]
[1645166138633,1.49417573,94.737,94.69,15.27]
[1645166138833,1.49417573,94.752,94.691,29.1517]
[1645166139061,1.49417573,94.758,94.692,23.5389]
[1645166139232,1.49417573,94.764,94.693,110.677]
[1645166139431,1.49417573,94.769,94.693,110.677]
[1645166139633,1.49417573,94.774,94.694,2.65628592]
[1645166139832,42.71559318,94.768,94.695,110.677]
[1645166140034,42.71559318,94.768,94.695,163.18926126]
[1645166140234,42.71559318,94.768,94.696,126.13792162]
[1645166140433,42.71559318,94.768,94.71,15.27]
[1645166140637,42.71559318,94.768,94.711,5.277]
[1645166140835,42.71559318,94.768,94.711,7.93328592]
[1645166141234,42.71559318,94.768,94.712,2.65628592]
[1645166141438,42.71559318,94.768,94.713,5.277]
[1645166142034,42.71559318,94.768,94.72,15.834]
[1645166142237,42.71559318,94.768,94.72,31.104]
[1645166143343,42.71559318,94.768,94.721,2.65628592]
[1645166151265,42.71559318,94.768,94.72,15.27]
[1645166156069,42.71559318,94.768,94.709,2.65628592]
[1645166156274,24.7333,94.767,94.709,2.65628592]
[1645166166893,24.7333,94.767,94.71,15.27]
[1645166167494,24.7333,94.767,94.71,17.92628592]
[1645166167895,26.22747573,94.767,94.71,17.92628592]
[1645166168094,24.7333,94.767,94.71,33.76208592]
[1645166168495,24.7333,94.767,94.711,5.277]
[1645166168897,24.7333,94.767,94.712,2.65628592]
[1645166169501,24.7333,94.767,94.713,24.8571]
[1645166169898,24.7333,94.767,94.714,2.65628592]
[1645166179932,24.7333,94.767,94.72,15.8341]
[1645166180132,24.7333,94.767,94.72,31.1041]
[1645166180430,24.7333,94.767,94.721,2.65628592]
[1645166180631,42.71559318,94.768,94.721,8.24628592]
[1645166180832,1.49417573,94.775,94.721,8.24628592]
[1645166181036,81.1634463,94.83,94.721,8.24628592]
[1645166181037,1.49417573,94.777,94.731,105.4]
[1645166181234,35.3850463,94.83,94.722,13.71272623]
[1645166181235,1.49417573,94.791,94.741,105.4]
[1645166181432,1.49417573,94.803,94.75,15.27]
[1645166181634,1.49417573,94.804,94.75,15.27]
[1645166181832,1.49417573,94.802,94.751,47.07384371]
[1645166182034,45.00716924,94.803,94.751,49.73012963]
[1645166182333,43.51299351,94.803,94.752,2.65628592]
[1645166182533,43.51299351,94.803,94.753,5.275]
[1645166182839,43.51299351,94.803,94.754,27.19228592]
[1645166183234,43.51299351,94.803,94.755,2.65628592]
[1645166185238,43.51299351,94.803,94.755,7.93128592]
[1645166185538,43.51299351,94.803,94.756,2.65628592]
[1645166185737,43.51299351,94.803,94.76,15.27]
[1645166186440,43.51299351,94.803,94.761,2.65628592]
[1645166191564,1.49417573,94.821,94.761,2.65628592]
[1645166191767,1.49417573,94.823,94.762,5.274]
[1645166191966,22.9363,94.828,94.762,7.93028592]
[1645166192166,22.9363,94.828,94.762,2.65628592]
[1645166192466,22.9363,94.828,94.763,2.65628592]
[1645166192666,52.95568621,94.827,94.763,2.65628592]
[1645166193372,52.95568621,94.827,94.77,15.8256]
[1645166193567,52.95568621,94.827,94.771,24.364]
[1645166193770,52.95568621,94.827,94.771,27.02028592]
[1645166193968,52.95568621,94.827,94.772,2.65628592]
[1645166198775,105.4,94.825,94.772,2.65628592]
[1645166198973,110.674,94.824,94.757,2.65628592]
[1645166199174,105.4,94.824,94.751,22.844]
[1645166199376,106.89417573,94.822,94.751,22.844]
[1645166199576,105.4,94.82,94.751,22.844]
[1645166200177,106.89417573,94.818,94.751,22.844]
[1645166200679,1.49417573,94.815,94.751,22.844]
[1645166200879,105.4,94.816,94.751,22.844]
[1645166201283,105.4,94.814,94.751,22.844]
[1645166202079,1.49417573,94.813,94.751,22.844]
[1645166202484,129.41917573,94.814,94.751,22.844]
[1645166202779,127.925,94.814,94.751,22.844]
[1645166203584,129.41917573,94.814,94.751,22.844]
[1645166203782,24.01917573,94.814,94.751,22.844]
[1645166203984,1.49417573,94.813,94.752,2.65628592]
[1645166204283,127.925,94.814,94.752,2.65628592]
[1645166204687,22.525,94.814,94.752,2.65628592]
[1645166204885,24.01917573,94.814,94.752,2.65628592]
[1645166205085,129.41917573,94.814,94.752,2.65628592]
[1645166205487,1.49417573,94.813,94.752,2.65628592]
[1645166205690,129.41917573,94.814,94.752,2.65628592]
[1645166206292,1.49417573,94.813,94.752,2.65628592]
[1645166206692,24.01917573,94.814,94.752,2.65628592]
[1645166207091,1.49417573,94.813,94.752,2.65628592]
[1645166207292,24.01917573,94.814,94.752,2.65628592]
[1645166207893,1.49417573,94.813,94.752,2.65628592]
[1645166208093,1.49417573,94.812,94.752,2.65628592]
[1645166208492,1.49417573,94.811,94.752,2.65628592]
[1645166208994,1.49417573,94.809,94.752,2.65628592]
[1645166210194,1.49417573,94.807,94.752,2.65628592]
[1645166211019,1.49417573,94.809,94.752,2.65628592]
[1645166212621,1.49417573,94.81,94.753,5.275]
[1645166212825,1.49417573,94.808,94.752,2.65628592]
[1645166213023,1.49417573,94.808,94.754,2.65628592]
[1645166213621,1.49417573,94.807,94.754,2.65628592]
[1645166219031,1.49417573,94.809,94.754,2.65628592]
[1645166222632,1.49417573,94.811,94.755,5.275]
[1645166223131,1.49417573,94.811,94.756,2.65628592]
[1645166224033,1.49417573,94.81,94.756,2.65628592]
[1645166225034,24.01917573,94.814,94.756,2.65628592]
[1645166225236,1.49417573,94.813,94.756,2.65628592]
[1645166225438,1.49417573,94.813,94.757,5.275]
[1645166225837,1.49417573,94.813,94.758,2.65628592]
[1645166226240,1.49417573,94.813,94.759,5.275]
[1645166226640,1.49417573,94.813,94.76,17.92628592]
[1645166226842,22.525,94.814,94.76,33.75378592]
[1645166227039,22.525,94.814,94.761,7.93128592]
[1645166227439,22.525,94.814,94.762,26.20038592]
[1645166227638,22.525,94.814,94.763,5.274]
[1645166227840,22.525,94.814,94.763,7.93028592]
[1645166228039,22.525,94.814,94.764,2.65628592]
[1645166228241,22.525,94.814,94.765,5.274]
[1645166228539,22.525,94.814,94.77,15.27]
[1645166228944,22.525,94.814,94.771,2.65628592]
[1645166234044,52.95568621,94.827,94.771,2.65628592]
[1645166235447,24.319,94.826,94.771,2.65628592]
[1645166243758,24.319,94.826,94.771,108.05628592]
[1645166244079,24.319,94.826,94.781,51.37780334]
[1645166244284,24.319,94.826,94.782,24.2826]
[1645166244480,24.319,94.826,94.782,26.93888592]
[1645166244879,24.319,94.826,94.783,2.65628592]
[1645166246184,41.16097376,94.825,94.783,2.65628592]